lending/lending_fUSD_20251021
["ID","MTS","AMOUNT","RATE_DAILY","PERIOD"]
[392001017,1761078876076,-500.0,0.00014999,2]
[392001018,1761078876105,-406.14975964,0.00014999,2]
[392001019,1761078876130,-1000.0,0.00014999,2]
[392001020,1761078876158,-245721.54082906,0.00015,2]
[392001021,1761078876184,-979174.56164885,0.00015,2]
[392001022,1761078876209,-321.54302752,0.00015,2]
[392001023,1761078876235,-151.0,0.00015,2]
[392001024,1761078876261,-51908.96002507,0.00015,2]
[392001025,1761078876285,-167.0,0.00015,2]
[392001026,1761078876310,-299.26111843,0.00015,2]
[392001027,1761078876338,-392287.26218318,0.00015,2]
[392001028,1761078887714,372.56,0.00013699,2]
[392001040,1761079016219,-300.0,0.00014999,2]
[392001041,1761079016243,-1200.0,0.00014999,2]
[392001042,1761079016267,-300.0,0.00014999,2]
[392001043,1761079016291,-150.0,0.00014999,2]
[392001044,1761079016314,-17357.61083965,0.00015,2]
[392001045,1761079016337,-2045.51288467,0.00015,2]
[392001046,1761079016359,-5173.36066574,0.00015,2]
[392001047,1761079016382,-1235.0,0.00015,2]
[392001048,1761079016405,-160.77151376,0.00015,2]
[392001049,1761079016428,-77.74409618,0.00015,2]
[392001057,1761079195311,100000.0,0.0003,120]
[392001237,1761079396156,500.0,0.00027724,120]
[392001238,1761079396539,500.0,0.00029824,120]
[392001306,1761079743942,-216.80522164,0.00014885,2]
[392001307,1761079746856,-157.27053559,0.00014885,2]
[392001308,1761079760813,-100.59837677,0.00014885,2]
[392001309,1761079760839,-142.32481145,0.00014923,2]
[392001310,1761079764210,-152.96244478,0.0001486,2]
[392001311,1761079767030,-173.55664674,0.0001486,2]
[392001312,1761079769972,-156.2684648,0.0001486,2]
[392001313,1761079772177,-156.67562788,0.0001486,2]
[392001315,1761079776273,-154.37437212,0.0001486,2]
[392001317,1761079778015,-162.55516565,0.0001486,2]
[392001328,1761079832462,-337.67792159,0.0001486,2]
[392001329,1761079832515,-810.30166489,0.0001486,2]
[392001330,1761079832525,-1395.58425574,0.00014891,2]
[392001331,1761079832537,-1104.41574426,0.00014891,2]
[392001332,1761079832548,-272.43753172,0.00014891,2]
[392001333,1761079832563,-195.0,0.00014891,2]
[392001334,1761079832573,-157.67518855,0.00014923,2]
[392001335,1761079832582,-2500.0,0.00014956,2]
[392001336,1761079832593,-682.0,0.00014999,2]
[392001337,1761079832603,-150.0,0.00014999,2]
[392001338,1761079832613,-300.0,0.00014999,2]
[392001339,1761079832624,-1200.0,0.00014999,2]
[392001340,1761079832633,-211.08444025,0.00015,2]
[392001341,1761079832643,-160.77151376,0.00015,2]
[392001342,1761079832652,-17890.0184724,0.00015,2]
[392001343,1761079832662,-422.1063761,0.00015,2]
[392001344,1761079832671,-771.7689234,0.00015,2]
[392001345,1761079832681,-200.2525,0.00015,2]
[392001346,1761079832691,-272.23189463,0.00015215,2]
[392001347,1761079832701,-150.0,0.00015215,2]
[392001348,1761079832714,-200.0,0.00015215,2]
[392001349,1761079832724,-181.75820498,0.00015215,2]
[392001350,1761079832733,-666.0,0.00015219,3]
[392001352,1761079832743,-151.0,0.00015292,2]
[392001353,1761079832754,-150.0,0.0001561,2]
[392001355,1761079832763,-150.0,0.0001561,2]
[392001357,1761079832773,-150.0,0.0001561,2]
[392001358,1761079832783,-150.0,0.00015665,2]
[392001359,1761079832794,-187.82819955,0.00015665,2]
[392001361,1761079832805,-150.0,0.00015665,2]
[392001362,1761079832815,-500.0,0.000157,2]
[392001363,1761079832824,-265.21687437,0.00015719,2]
[392001364,1761079832834,-150.0,0.00015719,2]
[392001365,1761079832844,-500.0,0.00015719,2]
[392001366,1761079832853,-500.0,0.00015719,2]
[392001368,1761079832863,-500.0,0.00015719,2]
[392001370,1761079832873,-150.0,0.0001572,2]
[392001372,1761079832882,-150.0,0.0001572,2]
[392001374,1761079832891,-200.0,0.00015774,2]
[392001376,1761079832901,-500.0,0.00015774,2]
[392001378,1761079832910,-500.0,0.00015774,2]
[392001380,1761079832919,-500.0,0.00015774,2]
[392001382,1761079832932,-150.0,0.00015774,2]
[392001384,1761079832942,-150.0,0.00015774,2]
[392001388,1761079832952,-258.18735467,0.00015774,2]
[392001390,1761079832960,-150.0,0.00015774,2]
[392001392,1761079832970,-150.0,0.00015774,2]
[392001394,1761079832979,-269.22652821,0.00015774,2]
[392001396,1761079832988,-300.0,0.00015802,2]
[392001398,1761079832998,-610.0,0.00015802,2]
[392001400,1761079833007,-150.0,0.00015808,2]
[392001402,1761079833019,-500.0,0.00015829,2]
[392001404,1761079833029,-500.0,0.00015829,2]
[392001406,1761079833039,-497.36596479,0.00015829,2]
[392001408,1761079833051,-2.63403521,0.00015829,2]
[392001410,1761079833061,-150.0,0.00015829,2]
[392001412,1761079833071,-250.0,0.00015829,2]
[392001414,1761079833080,-150.0,0.00015829,2]
[392001416,1761079833090,-227.45629099,0.00015829,2]
[392001418,1761079833100,-500.0,0.00015833,2]
[392001420,1761079833109,-500.0,0.00015833,2]
[392001422,1761079833119,-300.0,0.00015857,2]
[392001425,1761079833131,-500.0,0.00015883,2]
[392001426,1761079833141,-402.22862341,0.00015883,2]
[392001428,1761079833150,-500.0,0.00015883,2]
[392001430,1761079833160,-150.0,0.00015884,2]
[392001432,1761079833170,-150.0,0.00015884,2]
[392001434,1761079833180,-300.0,0.00015912,2]
[392001437,1761079833190,-113.58563414,0.00015929,2]
[392001439,1761079833202,-1385.89436586,0.00015929,2]
[392001441,1761079833211,-389.88185362,0.00015938,2]
[392001443,1761079833223,-110.11814638,0.00015938,2]
[392001445,1761079833232,-498.12832441,0.00015938,2]
[392001448,1761079833248,-1.87167559,0.00015938,2]
[392001450,1761079833258,-264.91827268,0.00015938,2]
[392001452,1761079833268,-150.0,0.00015938,2]
[392001454,1761079833278,-746.70911822,0.00015951,2]
[392001456,1761079833290,-202.32088178,0.00015951,2]
[392001458,1761079833300,-446.13032496,0.00015952,2]
[392001462,1761079833323,-9469.11967504,0.00015952,2]
[392001464,1761079833332,-511.43,0.00015963,2]
[392001465,1761079833341,-300.0,0.00015966,2]
[392001468,1761079833351,-1658.33,0.00015974,2]
[392001469,1761079833360,-2751.0,0.00015986,2]
[392001472,1761079833370,-251.82012324,0.00015993,2]
[392001474,1761079833379,-500.0,0.00015993,2]
[392001476,1761079833388,-164.0,0.00015993,2]
[392001477,1761079833398,-351.18,0.00015994,2]
[392001480,1761079833407,-910.88,0.00016,2]
[392001481,1761079833417,-300.0,0.00016021,2]
[392001484,1761079833427,-1852.42,0.00016031,2]
[392001485,1761079833437,-150.0,0.0001604,2]
[392001487,1761079833446,-200.0,0.00016048,2]
[392001489,1761079833456,-300.0,0.00016076,2]
[392001491,1761079833465,-255.0,0.00016124,2]
[392001493,1761079833474,-500.0,0.00016133,2]
[392001495,1761079833483,-500.0,0.00016133,2]
[392001497,1761079833493,-349.52770984,0.00016133,2]
[392001499,1761079833503,-4529.58417647,0.00016134,2]
[392001503,1761079833522,-1433.2,0.00016196,2]
[392001505,1761079833533,-5000.00500285,0.000162,5]
[392001507,1761079833543,-150.0,0.00016314,2]
[392001509,1761079833553,-2500.0,0.00016346,2]
[392001511,1761079833562,-300.0,0.00016346,2]
[392001513,1761079833572,-300.0,0.00016346,2]
[392001515,1761079833582,-195.0,0.00016346,2]
[392001517,1761079833591,-154.55748469,0.00016346,2]
[392001519,1761079833601,-3130.28,0.00016346,2]
[392001521,1761079833611,-300.0,0.00016373,2]
[392001523,1761079833621,-250.0,0.00016373,2]
[392001525,1761079833630,-150.0,0.00016373,2]
[392001527,1761079833640,-250.0,0.00016373,2]
[392001529,1761079833649,-195.0,0.00016373,2]
[392001531,1761079833659,-613.07913055,0.00016373,2]
[392001533,1761079833669,-2500.0,0.00016373,2]
[392001535,1761079833679,-300.0,0.00016373,2]
[392001537,1761079833688,-300.0,0.00016373,2]
[392001539,1761079833698,-250.0,0.00016373,2]
[392001541,1761079833712,-195.0,0.00016373,2]
[392001543,1761079833722,-300.0,0.00016373,2]
[392001545,1761079833731,-195.0,0.00016373,2]
[392001547,1761079833741,-150.0,0.00016373,2]
[392001549,1761079833752,-150.0,0.00016373,2]
[392001551,1761079833762,-414.79416885,0.00016381,2]
[392001553,1761079833772,-300.0,0.00016416,2]
[392001555,1761079833782,-300.0,0.00016456,2]
[392001557,1761079833792,-155.0,0.00016499,2]
[392001559,1761079833802,-1420.0,0.00016499,2]
[392001561,1761079833811,-422.1063761,0.00016663,2]
[392001563,1761079833821,-771.7689234,0.00016664,2]
[392001565,1761079833829,-17890.0184724,0.00016677,2]
[392001567,1761079833839,-173.99,0.00016791,2]
[392001569,1761079833848,-250.0,0.00017,2]
[392001571,1761079833857,-200.25251,0.00017,2]
[392001573,1761079833868,-262.5,0.00017314,2]
[392001575,1761079833877,-433.0,0.00017339,2]
[392001577,1761079833886,-166.66,0.00017584,2]
[392001579,1761079833896,-476.03091061,0.00017625,2]
[392001581,1761079833904,-475.82771539,0.0001763,2]
[392001583,1761079833914,-403.0,0.000177,5]
[392001585,1761079833923,-511.43,0.00017736,2]
[392001587,1761079833933,-500.0,0.00017808,2]
[392001589,1761079833944,-500.0,0.00017863,2]
[392001591,1761079833954,-500.0,0.00017918,2]
[392001593,1761079833963,-500.0,0.00017972,2]
[392001595,1761079833973,-155.0,0.00017999,2]
[392001597,1761079833983,-500.0,0.00018027,2]
[392001599,1761079833993,-500.0,0.00018082,2]
[392001601,1761079834004,-596.35,0.00018082,2]
[392001603,1761079834013,-369.23968107,0.00018137,2]
[392001605,1761079834023,-422.1063761,0.00018325,2]
[392001607,1761079834032,-771.7689234,0.00018328,2]
[392001609,1761079834042,-17890.0184724,0.00018354,2]
[392001611,1761079834051,-166.66,0.00018551,2]
[392001639,1761079834298,-262.5,0.00018684,2]
[392001642,1761079834309,-3762.80537408,0.00018698,2]
[392001644,1761079834318,-287.75,0.0001875,2]
[392001646,1761079834327,-1641.26544047,0.0001876,2]
[392001648,1761079834336,-596.35,0.0001876,2]
[392001649,1761079834346,-13081.30303588,0.00018804,2]
[392001651,1761079834355,-3070.41,0.00018864,2]
[392001653,1761079834365,-521.07247962,0.000189,2]
[392001656,1761079834378,-153.0,0.00018904,2]
[392001658,1761079834389,-153.0,0.00018904,2]
[392001660,1761079834399,-153.0,0.00018904,2]
[392001662,1761079834409,-153.0,0.00018904,2]
[392001664,1761079834418,-153.0,0.00018904,2]
[392001666,1761079834428,-153.0,0.00018904,2]
[392001668,1761079834437,-153.0,0.00018904,2]
[392001670,1761079834447,-153.0,0.00018904,2]
[392001672,1761079834456,-153.0,0.00018904,2]
[392001674,1761079834466,-153.0,0.00018904,2]
[392001676,1761079834476,-153.0,0.00018904,2]
[392001678,1761079834486,-153.0,0.00018904,2]
[392001680,1761079834495,-153.0,0.00018904,2]
[392001682,1761079834504,-153.0,0.00018904,2]
[392001684,1761079834513,-153.0,0.00018904,2]
[392001686,1761079834523,-153.0,0.00018904,2]
[392001688,1761079834533,-166.0,0.00018904,2]
[392001690,1761079834542,-166.0,0.00018904,2]
[392001692,1761079834554,-166.0,0.00018904,2]
[392001695,1761079834563,-166.0,0.00018904,2]
[392001697,1761079834573,-166.0,0.00018904,2]
[392001699,1761079834586,-166.0,0.00018904,2]
[392001701,1761079834595,-166.0,0.00018904,2]
[392001703,1761079834604,-166.0,0.00018904,2]
[392001705,1761079834614,-166.0,0.00018904,2]
[392001707,1761079834623,-166.0,0.00018904,2]
[392001709,1761079834633,-166.0,0.00018904,2]
[392001711,1761079834643,-166.0,0.00018904,2]
[392001713,1761079834652,-166.0,0.00018904,2]
[392001714,1761079834662,-166.0,0.00018904,2]
[392001715,1761079834671,-166.0,0.00018904,2]
[392001716,1761079834681,-153.0,0.00018904,2]
[392001717,1761079834691,-153.0,0.00018904,2]
[392001718,1761079834701,-153.0,0.00018904,2]
[392001719,1761079834716,-153.0,0.00018904,2]
[392001720,1761079834726,-153.0,0.00018904,2]
[392001721,1761079834735,-153.0,0.00018904,2]
[392001722,1761079834746,-153.0,0.00018904,2]
[392001723,1761079834756,-4187.05,0.00018921,2]
[392001724,1761079834770,-200.0,0.00018921,2]
[392001725,1761079834782,-200.0,0.00018921,2]
[392001726,1761079834792,-250.0,0.00018921,7]
[392001727,1761079834802,-3269.72,0.00018966,2]
[392001728,1761079834812,-500.0,0.00018999,2]
[392001729,1761079834823,-500.0,0.00018999,2]
[392001730,1761079834832,-265.229667,0.00018999,2]
[392001731,1761079834842,-284.30483175,0.00018999,2]
[392001732,1761079834852,-545.8739979,0.00018999,2]
[392001733,1761079834862,-103132.68281888,0.00019,2]
[392001734,1761079834896,-699.36702806,0.00019,2]
[392001735,1761079834908,-936.02531955,0.00019,2]
[392001736,1761079838279,-1000.0,0.00015951,2]
[392001737,1761079838290,-1000.0,0.00017945,2]
[392001738,1761079838303,-35595.48352121,0.00019,2]
[392001739,1761079838322,-3274.46726159,0.00019,2]
[392001740,1761079838334,-1038.82018989,0.00019,2]
[392001741,1761079838390,-520.33622349,0.00019,2]
[392001742,1761079838399,-284.30414903,0.00019,2]
[392001743,1761079838409,-300.0,0.00019,2]
[392001744,1761079838419,-1263.44685322,0.00019,2]
[392001745,1761079838430,-1035.01052841,0.00019,2]
[392001746,1761079838439,-815.92059869,0.00019,2]
[392001747,1761079838450,-706.41838175,0.00019,2]
[392001748,1761079838460,-73.58161826,0.00019,2]
[392001749,1761079838471,-126.67088174,0.00019,2]
[392001750,1761079838481,-1231.0,0.00019,2]
[392001751,1761079838490,-162.58,0.00019161,2]
[392001752,1761079838500,-2306.98,0.00019178,2]
[392001754,1761079838509,-513.88470609,0.00019438,2]
[392001756,1761079838536,-82.46529391,0.00019438,2]
[392001757,1761079838546,-511.43,0.0001951,2]
[392001758,1761079838556,-86.53999063,0.00019519,2]
[392001759,1761079838568,-80.12000937,0.00019519,2]
[392001760,1761079838578,-6565.07,0.00019533,2]
[392001761,1761079838588,-1124.5,0.00019726,2]
[392001762,1761079838598,-245.9073807,0.00019873,2]
[392001763,1761079838608,-7364.21248869,0.00019873,2]
[392001765,1761079838620,-401.748,0.00019873,2]
[392001766,1761079838650,-3058.02622672,0.00019873,2]
[392001773,1761079840321,-583.94014922,0.00019873,2]
[392001774,1761079840480,-585.97309959,0.00019873,2]
[392001775,1761079840491,-195.06008059,0.00019939,2]
[392001776,1761079840504,-489.35362707,0.00019939,2]
[392001777,1761079840517,-315.58629234,0.00019939,2]
[392001778,1761079840528,-11048.16965294,0.0001995,15]
[392001779,1761079840541,-16882.04186296,0.0001995,15]
[392001781,1761079840646,-289.84382378,0.0001995,15]
[392001784,1761079843410,-1667.4,0.0001995,15]
[392001802,1761079844116,-1110.1657,0.0001995,15]
[392001803,1761079846768,-22194.0,0.0001995,15]
[392001804,1761079846880,-1350.85415841,0.0001995,15]
[392001805,1761079846891,-5896.70964164,0.0001995,15]
[392001806,1761079846902,-1014.96075742,0.0001995,15]
[392001807,1761079846914,-1280.3099978,0.0001995,15]
[392001959,1761079995431,252.887313,0.00029824,120]
[392001998,1761080449380,50000.0,0.0003427,34]
[392001999,1761080453355,50000.0,0.0003427,35]
[392002000,1761080457514,50000.0,0.0003427,36]
[392002005,1761080534733,37000.0,0.0003427,37]
[392002034,1761081031503,-169.72,0.00015061,2]
[392002035,1761081031513,-352.93356825,0.0001603,2]
[392002037,1761081031523,-300.0,0.00016567,2]
[392002039,1761081031532,-250.0,0.00017,2]
[392002040,1761081031542,-150.0,0.00017,2]
[392002042,1761081031555,-500.0,0.00018754,2]
[392002043,1761081031565,-1000.0,0.00018866,2]
[392002044,1761081031574,-410.38252932,0.00018866,2]
[392002045,1761081031589,-65.64838129,0.00018866,2]
[392002046,1761081031599,-250.0,0.00018867,2]
[392002047,1761081031608,-1037.58,0.00018966,2]
[392002048,1761081031618,-15.27857986,0.0001909,2]
[392002049,1761081031630,-231.34142014,0.0001909,2]
[392002050,1761081031641,-200.0,0.00019171,2]
[392002051,1761081031651,-163.99,0.00019184,2]
[392002052,1761081031665,-369.49937256,0.00019195,3]
[392002053,1761081031681,-296.50062744,0.00019195,3]
[392002054,1761081031691,-200.0,0.0001926,2]
[392002055,1761081031701,-7098.01779168,0.00019299,2]
[392002056,1761081031738,-1812.49239308,0.00019299,2]
[392002057,1761081031749,-1147.28283243,0.00019299,2]
[392002058,1761081031761,-852.71716757,0.00019299,2]
[392002059,1761081031844,-1780.81,0.00019299,2]
[392002068,1761081037460,-1363.02527604,0.00019299,2]
[392002069,1761081037470,-11107.11712463,0.00019567,2]
[392002070,1761081037479,-653.93910093,0.000197,2]
[392002071,1761081037566,-716.4438225,0.000197,2]
[392002072,1761081037676,-370.53,0.000197,2]
[392002073,1761081037687,-259.08707657,0.000197,2]
[392002074,1761081037696,-285.29463001,0.000199,2]
[392002077,1761081039551,-400.0,0.000199,2]
[392002078,1761081039610,-11087.8781023,0.000199,2]
[392002079,1761081039619,-152.60535,0.00019939,2]
[392002080,1761081039629,-365.95134532,0.00019949,2]
[392002081,1761081039638,-67363.64172405,0.0001995,15]
[392002082,1761081039647,-2758.87714212,0.0002,2]
[392002083,1761081039657,-55491.78917648,0.0002,2]
[392002084,1761081039666,-1402.24496387,0.0002,14]
[392002085,1761081039677,-8985.18681707,0.0002001,2]
[392002086,1761081039687,-1000.0,0.00020016,2]
[392002087,1761081039696,-596.35,0.00020116,2]
[392002088,1761081039706,-1282.91,0.00020181,2]
[392002089,1761081039716,-372.56,0.00020187,2]
[392002090,1761081039724,-560.0,0.000204,2]
[392002091,1761081039733,-3012.00802756,0.00020419,2]
[392002092,1761081039743,-166.66,0.00020486,2]
[392002093,1761081039752,-1129.3,0.00020548,2]
[392002094,1761081039761,-163.99,0.00020554,2]
[392002095,1761081039772,-2500.0,0.00020671,2]
[392002096,1761081039781,-208.0,0.00020771,2]
[392002097,1761081039790,-150.0,0.00020771,2]
[392002098,1761081039799,-200.0,0.00020771,2]
[392002099,1761081039808,-212.72,0.00020771,2]
[392002100,1761081039817,-185.739,0.00020771,2]
[392002101,1761081039827,-250.0,0.00020771,2]
[392002102,1761081039836,-150.0,0.00020771,2]
[392002103,1761081039846,-151.128,0.00020771,2]
[392002104,1761081039855,-150.0,0.00020771,2]
[392002105,1761081039864,-208.672,0.00020771,2]
[392002106,1761081039873,-250.0,0.00020771,2]
[392002107,1761081039883,-209.143,0.00020771,2]
[392002108,1761081039892,-217.52,0.00020771,2]
[392002109,1761081039901,-2052.0,0.00020771,2]
[392002110,1761081039911,-3411.0,0.00020771,2]
[392002111,1761081039920,-588.532,0.00020771,2]
[392002112,1761081039929,-818.0,0.00020771,2]
[392002113,1761081039939,-1311.0,0.00020771,2]
[392002114,1761081039948,-1590.0,0.00020771,2]
[392002115,1761081039957,-679.349,0.00020771,2]
[392002116,1761081039967,-1268.0,0.00020771,2]
[392002117,1761081039976,-817.0,0.00020771,2]
[392002118,1761081039985,-2548.0,0.00020771,2]
[392002119,1761081039994,-6534.0,0.00020771,2]
[392002120,1761081040004,-2591.0,0.00020771,2]
[392002121,1761081040013,-557.0,0.00020771,2]
[392002122,1761081040022,-1258.30083764,0.00020771,2]
[392002123,1761081040034,-5192.69916236,0.00020771,2]
[392002125,1761081040043,-596.35,0.00020795,2]
[392002126,1761081040053,-603.0,0.000208,2]
[392002127,1761081040063,-430.30327994,0.0002083,2]
[392002128,1761081040073,-160.26,0.00021,2]
[392002129,1761081040083,-12359.61,0.00021068,2]
[392002130,1761081040093,-511.43,0.00021283,2]
[392002131,1761081040102,-500.0,0.00021329,2]
[392002132,1761081040111,-500.0,0.00021329,2]
[392002133,1761081040119,-3078.0,0.00021412,2]
[392002134,1761081040129,-185.6607669,0.00021492,2]
[392002135,1761081040138,-199.01338223,0.00021492,2]
[392002136,1761081040147,-500.0,0.00021492,2]
[392002137,1761081040155,-232.11179853,0.00021492,2]
[392002138,1761081040165,-11773.17273222,0.00021493,2]
[392002139,1761081040174,-3135.9483534,0.00021883,2]
[392002140,1761081040183,-500.0,0.00021917,2]
[392002141,1761081040192,-5000.0,0.00021918,2]
[392002142,1761081040202,-163.99,0.00021924,2]
[392002143,1761081040212,-1000.0,0.00021933,2]
[392002144,1761081040221,-133.98038494,0.00021939,2]
[392002145,1761081040241,-18.62497506,0.00021939,2]
[392002146,1761081040251,-606.71142289,0.00022007,2]
[392002153,1761081042620,-784.01857711,0.00022007,2]
[392002154,1761081042630,-475.23,0.00022026,2]
[392002155,1761081042640,-699.7246583,0.0002246,2]
[392002156,1761081042649,-161.91979002,0.00022939,2]
[392002157,1761081042658,-1232.63277743,0.00022973,2]
[392002158,1761081042669,-1616.13556112,0.00022973,2]
[392002159,1761081042681,-1772.5,0.00022973,2]
[392002160,1761081042693,-6173.24162923,0.00022973,2]
[392002161,1761081042702,-37089.55132467,0.00023009,2]
[392002162,1761081042791,-5559.75423027,0.00023009,2]
[392002192,1761081116191,13000.0,0.0003427,37]
[392002196,1761081132311,50000.0,0.0003427,38]
[392002197,1761081136623,50000.0,0.0003427,39]
[392002198,1761081201807,7000.0,0.0003427,40]
[392002199,1761081217016,167.48,0.00011148,2]
[392002200,1761081217287,167.48,0.00011735,2]
[392002201,1761081217663,167.48,0.00012322,2]
[392002202,1761081217875,167.48,0.00012908,2]
[392002203,1761081218094,167.48,0.00013495,2]
[392002442,1761081956535,360.3,0.00013699,2]
[392002469,1761082118274,2437.38653104,0.0003427,30]
[392002472,1761082128225,-167.48,0.00014082,2]
[392002473,1761082128250,-53.1970794,0.00014375,2]
[392002474,1761082130521,-181.18711399,0.00014375,2]
[392002515,1761082231867,-167.48,0.00014669,2]
[392002516,1761082231877,-160.2999999,0.00014899,2]
[392002517,1761082231927,-139.7000001,0.00014899,2]
[392002518,1761082231936,-300.0,0.00014899,2]
[392002519,1761082231945,-573.69514503,0.00014899,2]
[392002520,1761082231990,-448.30485497,0.00014899,2]
[392002521,1761082231999,-801.69514503,0.000149,2]
[392002522,1761082232011,-2669.52000002,0.000149,2]
[392002523,1761082232022,-584.28865495,0.000149,2]
[392002524,1761082232032,-1382.21134505,0.000149,2]
[392002525,1761082232052,-8332.84762597,0.000149,2]
[392002526,1761082232062,-2500.0,0.000149,2]
[392002527,1761082232072,-9609.13663486,0.000149,2]
[392002528,1761082232081,-536.40126183,0.000149,2]
[392002529,1761082232091,-512.47825897,0.00014999,2]
[392002530,1761082232100,-150.0,0.00014999,2]
[392002531,1761082232110,-36831.02720679,0.00015,2]
[392002532,1761082232121,-553.0525,0.00015,2]
[392002533,1761082232142,-2426.77946379,0.00015,2]
[392002534,1761082232154,-742.49336228,0.00015,2]
[392002535,1761082232170,-703.5788288,0.00015,2]
[392002537,1761082232181,-750.0,0.00015,2]
[392002606,1761082237711,-8508.79,0.00015,2]
[392002607,1761082237825,-6469.78364275,0.00015,2]
[392002608,1761082237836,-3635.55629692,0.00015,2]
[392002609,1761082237847,-6710.96812018,0.00015,2]
[392002610,1761082237858,-1288.03785557,0.00015,2]
[392002611,1761082237869,-950.64304564,0.00015,2]
[392002612,1761082237884,-300.58235908,0.00015,2]
[392002613,1761082237895,-348.22937864,0.00015,2]
[392002633,1761082239731,-1187.24853491,0.00015,2]
[392002634,1761082239742,-11062.0,0.00015,2]
[392002635,1761082239799,-480.066519,0.00015,2]
[392002636,1761082239968,-534.92261043,0.00015,2]
[392002653,1761082242819,-442.8,0.00015,2]
[392002654,1761082242878,-60409.09904122,0.00015,2]
[392002662,1761082246255,-2054.30184201,0.00015,2]
[392002663,1761082246266,-763.13236999,0.00015,2]
[392002669,1761082279602,-222.65,0.00015,2]
[392003018,1761082954425,3058.17339,0.00034272,30]
[392003295,1761083385621,2040.44758,0.0003,120]
[392003323,1761083432068,-167.11321011,0.00014798,2]
[392003324,1761083432079,-167.1132101,0.00014799,2]
[392003325,1761083432089,-898.1440483,0.00014805,2]
[392003326,1761083432099,-227.2890048,0.00014812,2]
[392003327,1761083432127,-2272.7109952,0.00014812,2]
[392003328,1761083432137,-1200.0,0.00014898,2]
[392003329,1761083432151,-300.0,0.00014898,2]
[392003330,1761083432161,-150.0,0.00014899,2]
[392003331,1761083432170,-500.0,0.00014899,2]
[392003333,1761083432180,-500.0,0.00014899,2]
[392003334,1761083432189,-353.55670583,0.00014899,2]
[392003335,1761083432199,-312.92152259,0.000149,2]
[392003336,1761083432210,-687.07847741,0.000149,2]
[392003337,1761083432220,-458.26152261,0.000149,2]
[392003338,1761083432231,-1800.3999996,0.000149,2]
[392003339,1761083432259,-4357.97987779,0.000149,2]
[392003340,1761083432269,-9416.10160216,0.000149,2]
[392003341,1761083432279,-47138.94345145,0.000149,2]
[392003344,1761083432324,-61341.42696961,0.000149,2]
[392003347,1761083432335,-371.055,0.000149,2]
[392003349,1761083432351,-38007.19337894,0.000149,2]
[392003351,1761083432360,-10156.66431732,0.000149,2]
[392003354,1761083432370,-2500.0,0.000149,2]
[392003356,1761083432380,-469.35110411,0.000149,2]
[392003358,1761083432389,-151.0,0.00014991,2]
[392003360,1761083432399,-151.0,0.00014991,2]
[392003362,1761083432409,-151.0,0.00014991,2]
[392003363,1761083432419,-151.0,0.00014991,2]
[392003364,1761083432428,-151.0,0.00014991,2]
[392003365,1761083432438,-151.0,0.00014991,2]
[392003366,1761083432449,-151.0,0.00014991,2]
[392003368,1761083432459,-151.0,0.00014991,2]
[392003369,1761083432470,-151.0,0.00014991,2]
[392003371,1761083432479,-151.0,0.00014991,2]
[392003373,1761083432489,-151.0,0.00014991,2]
[392003375,1761083432499,-151.0,0.00014991,2]
[392003377,1761083432508,-151.0,0.00014991,2]
[392003380,1761083432517,-450.18242113,0.00014999,2]
[392003383,1761083432527,-2681.38079536,0.00015,2]
[392003694,1761083440014,-167.1132101,0.000148,2]